bitfinex-derivatives/quotes_SOLF0:USTF0_20250325
["timestamp","ask_amount","ask_price","bid_price","bid_amount"]
[1742916138730,0.04889972,145.41,145.31,236.2840402]
[1742916138928,13.7476,145.47,145.35,6.8786]
[1742916138929,6.878,145.38,145.35,6.8786]
[1742916139333,0.0481526,145.37,145.35,6.8786]
[1742916139529,0.0481526,145.37,145.36,6.8786]
[1742916139731,13.7476,145.47,145.34,25.58]
[1742916139931,0.04849805,145.38,145.34,25.58]
[1742916140132,6.8754,145.43,145.4,6.8765]
[1742916140532,0.04631829,145.43,145.4,6.8765]
[1742916140731,0.04631829,145.43,145.39,32.517]
[1742916140931,0.04631829,145.43,145.39,25.64]
[1742916141332,0.04631829,145.43,145.4,6.8766]
[1742916141534,6.92171829,145.43,145.4,6.8766]
[1742916141732,6.92171829,145.43,145.39,25.64]
[1742916141937,6.92171829,145.43,145.39,32.517]
[1742916142151,6.92171829,145.43,145.39,25.64]
[1742916142637,0.04631829,145.43,145.39,25.64]
[1742916143236,0.04631829,145.43,145.41,6.8759]
[1742916144137,0.04631829,145.43,145.39,25.64]
[1742916145437,0.04631829,145.43,145.42,6.8758]
[1742916146039,0.04631829,145.43,145.41,6.8761]
[1742916147338,0.04631829,145.43,145.42,6.8758]
[1742916148436,34.82928711,145.53,145.48,6.8725]
[1742916148641,34.82928711,145.53,145.4,13.753]
[1742916148642,34.82928711,145.53,145.45,25.56]
[1742916148944,9.26928711,145.53,145.46,25.56]
[1742916149145,9.26928711,145.53,145.47,25.56]
[1742916149439,9.26928711,145.53,145.48,25.56]
[1742916149633,37.07714845,145.58,145.48,25.56]
[1742916149834,0.05227216,145.51,145.49,0.0481364]
[1742916150043,6.8687,145.57,145.54,6.8697]
[1742916150341,6.91728628,145.57,145.54,6.8697]
[1742916150740,6.91728628,145.57,145.54,6.91554093]
[1742916151037,6.91728628,145.57,145.54,0.04584093]
[1742916151637,0.04858628,145.57,145.54,0.04584093]
[1742916152240,6.8691,145.56,145.54,0.04584093]
[1742916152845,6.8696,145.55,145.54,0.04584093]
[1742916153053,0.04858628,145.57,145.54,0.04584093]
[1742916153346,6.8695,145.56,145.54,0.04584093]
[1742916153548,0.04858628,145.57,145.54,0.04584093]
[1742916154041,6.8696,145.56,145.54,0.04584093]
[1742916154241,0.04858628,145.57,145.54,0.04584093]
[1742916154441,6.91748628,145.57,145.54,0.04584093]
[1742916154637,0.04858628,145.57,145.54,0.04584093]
[1742916155851,6.91738628,145.57,145.54,0.04584093]
[1742916156048,0.04858628,145.57,145.54,0.04584093]
[1742916157360,6.8695,145.56,145.54,0.04584093]
[1742916159257,6.8696,145.55,145.54,0.04584093]
[1742916160252,6.8707,145.53,145.47,365.0]
[1742916160452,25.44,145.6,145.47,365.0]
[1742916160655,25.44,145.6,145.48,25.44]
[1742916160862,6.87,145.55,145.49,25.44]
[1742916161059,25.44,145.6,145.52,6.8707]
[1742916161259,6.87,145.55,145.52,25.44]
[1742916161461,0.04602416,145.57,145.52,25.44]
[1742916162162,0.04602416,145.57,145.48,6.8728]
[1742916162356,13.7345,145.61,145.48,6.8728]
[1742916162357,25.44,145.58,145.49,25.44]
[1742916162558,6.8718,145.51,145.43,365.0]
[1742916162762,25.44,145.58,145.44,25.46]
[1742916163257,0.048567,145.52,145.44,25.46]
[1742916164053,0.048567,145.52,145.51,6.8715]
[1742916164556,0.048567,145.52,145.5,25.46]
[1742916165362,0.048567,145.52,145.51,6.8715]
[1742916165865,0.048567,145.52,145.5,32.3319]
[1742916166167,0.048567,145.52,145.5,25.46]
[1742916166761,0.048567,145.52,145.43,365.0]
[1742916166956,6.871,145.53,145.49,6.8722]
[1742916167156,6.871,145.53,145.5,25.4]
[1742916167366,0.04494602,145.52,145.5,25.4]
[1742916167566,0.04494602,145.52,145.5,32.2717]
[1742916167770,0.04494602,145.52,145.5,25.4]
[1742916168867,0.04494602,145.52,145.51,6.8715]
[1742916170263,0.04494602,145.52,145.5,32.2719]
[1742916170567,0.04494602,145.52,145.5,25.4]
[1742916170768,6.91624602,145.52,145.5,25.4]
[1742916171367,0.04494602,145.52,145.5,25.4]
[1742916171767,0.04494602,145.52,145.51,6.8715]
[1742916171968,0.04494602,145.52,145.5,25.4]
[1742916172464,0.04494602,145.52,145.51,6.8715]
[1742916172666,0.04494602,145.52,145.5,25.4]
[1742916173269,0.04494602,145.52,145.5,32.2717]
[1742916174464,0.04494602,145.52,145.51,6.8715]
[1742916176773,25.28,145.61,145.54,6.87]
[1742916177271,6.869,145.57,145.54,32.17]
[1742916177875,6.91739449,145.57,145.54,32.221815]
[1742916178178,0.04839449,145.57,145.54,25.351815]
[1742916179872,0.04839449,145.57,145.55,6.8696]
[1742916180279,0.04839449,145.57,145.56,6.8691]
[1742916180771,0.04839449,145.57,145.54,1.5e-05]
[1742916180772,6.8696,145.55,145.54,1.5e-05]
[1742916181083,25.5,145.55,145.42,25.5]
[1742916181876,6.8723,145.5,145.39,402.8561608]
[1742916182077,0.05216802,145.5,145.4,25.5]
[1742916182276,6.8722,145.5,145.46,6.8735]
[1742916182472,6.8722,145.5,145.47,25.5]
[1742916182669,0.04512033,145.49,145.47,25.5]
[1742916182879,0.04512033,145.49,145.47,32.3733]
[1742916183179,0.04512033,145.49,145.47,25.5]
[1742916183382,0.04512033,145.49,145.48,6.8729]
[1742916183979,0.04512033,145.49,145.47,32.3732]
[1742916184579,0.04512033,145.49,145.48,6.8729]
[1742916184974,0.04512033,145.49,145.47,25.5]
[1742916185781,0.04512033,145.49,145.48,6.8729]
[1742916185981,0.04512033,145.49,145.47,25.5]
[1742916186781,0.04512033,145.49,145.41,226.74]
[1742916187078,25.5,145.55,145.42,25.46]
[1742916187283,0.04361402,145.46,145.42,25.46]
[1742916187478,0.05117247,145.45,145.42,25.46]
[1742916187685,6.8715,145.51,145.42,25.46]
[1742916187888,0.05039351,145.45,145.42,25.46]
[1742916188084,6.8722,145.5,145.47,6.8733]
[1742916188483,6.9187226,145.5,145.47,6.8733]
[1742916188784,6.8725,145.49,145.46,32.3336]
[1742916188985,0.0465226,145.5,145.46,25.46]
[1742916189285,6.9187226,145.5,145.47,6.873]
[1742916190390,6.8726,145.49,145.46,32.3337]
[1742916190689,0.0465226,145.5,145.46,25.46]
[1742916191082,0.0465226,145.5,145.47,6.8733]
[1742916191283,0.0465226,145.5,145.46,25.46]
[1742916193591,0.0465226,145.5,145.47,6.873]
[1742916193788,0.0465226,145.5,145.46,25.46]
[1742916193984,0.0465226,145.5,145.49,6.8724]
[1742916194689,0.0465226,145.5,145.46,25.46]
[1742916196591,6.8728,145.49,145.46,25.46]
[1742916196791,0.0465226,145.5,145.41,240.4916]
[1742916196992,10.28617882,145.57,145.42,25.36]
[1742916197287,0.05058498,145.47,145.46,6.8736]
[1742916197591,0.04616846,145.48,145.46,32.2536]
[1742916197790,6.8727,145.49,145.47,6.8734]
[1742916197988,0.04392809,145.48,145.47,6.8734]
[1742916198191,6.8715,145.52,145.48,6.8725]
[1742916198495,0.04883556,145.49,145.46,25.38]
[1742916198887,0.04883556,145.49,145.48,6.8729]
[1742916199192,0.04883556,145.49,145.46,25.38]
[1742916199390,0.04883556,145.49,145.48,6.8729]
[1742916202694,6.8703,145.54,145.52,6.8709]
[1742916202996,6.8703,145.54,145.52,32.1909]
[1742916203195,6.8703,145.54,145.52,25.32]
[1742916203692,6.8703,145.54,145.52,32.1908]
[1742916203891,0.04607822,145.54,145.52,25.37013383]
[1742916204290,6.8706,145.53,145.52,0.05013383]
[1742916205393,6.91637822,145.54,145.52,0.05013383]
[1742916205597,0.04607822,145.54,145.52,0.05013383]
[1742916206790,0.04607822,145.54,145.52,6.92093383]
[1742916207489,6.8706,145.53,145.52,0.05013383]
[1742916207695,25.38607822,145.54,145.41,9.4640402]
[1742916207992,6.8722,145.5,145.44,6.8745]
[1742916208192,238.05779292,145.57,145.43,25.6]
[1742916208396,25.6,145.56,145.43,25.6]
[1742916208599,6.8705,145.54,145.48,6.8726]
[1742916208800,0.04727036,145.51,145.47,25.6]
[1742916209100,0.04727036,145.51,145.48,25.6]
[1742916209302,25.6,145.56,145.48,25.6]
[1742916209497,0.04636935,145.51,145.48,25.6]
[1742916209698,6.91816935,145.51,145.48,25.6]
[1742916209997,0.04636935,145.51,145.48,25.6]
[1742916210800,6.8722,145.5,145.45,32.5143]
[1742916211003,25.62,145.56,145.45,25.62]
[1742916211196,0.04480704,145.49,145.45,25.62]
[1742916211396,25.62,145.56,145.47,6.873]
[1742916211599,25.62,145.56,145.45,25.62]
[1742916211796,0.04711142,145.53,145.45,25.62]
[1742916211996,6.8721,145.5,145.46,6.8736]
[1742916212397,0.05071559,145.49,145.46,6.8736]
[1742916212594,0.05071559,145.49,145.45,25.62]
[1742916213705,6.92341559,145.49,145.45,25.62]
[1742916214106,6.92341559,145.49,145.45,32.494]
[1742916214407,6.8731,145.48,145.45,32.494]
[1742916214908,6.8731,145.48,145.45,6.874]
[1742916215095,6.8731,145.48,145.46,32.4538]
[1742916215297,6.8727,145.49,145.46,32.4538]
[1742916215603,0.0444119,145.48,145.46,32.4538]
[1742916215904,0.0444119,145.48,145.47,6.8734]
[1742916218105,0.0444119,145.48,145.46,32.4537]
[1742916218602,0.0444119,145.48,145.47,6.8734]
[1742916221602,9.26928711,145.53,145.52,6.871]
[1742916221810,9.26928711,145.53,145.52,32.411]
[1742916224711,9.26928711,145.53,145.52,32.391]
[1742916224906,0.04972255,145.54,145.53,6.8706]
[1742916242917,0.04972255,145.54,145.53,32.1506]
[1742916243122,0.04972255,145.54,145.53,6.8706]
[1742916245028,0.04972255,145.54,145.52,6.8709]
[1742916245531,0.04972255,145.54,145.51,0.04459023]
[1742916246724,6.8709,145.53,145.51,0.04459023]
[1742916246930,0.04972255,145.54,145.51,0.04459023]
[1742916247331,6.8709,145.53,145.51,0.04459023]
[1742916247528,0.04972255,145.54,145.51,0.04459023]
[1742916247725,0.04972255,145.54,145.52,25.28]
[1742916248026,0.04972255,145.54,145.53,6.8706]
[1742916248628,7.71893572,145.57,145.53,17.15451632]
[1742916248826,111.23144537,145.6,145.55,10.27451632]
[1742916249023,111.23144537,145.6,145.59,6.8677]
[1742916250637,173.32349856,145.61,145.6,6.8673]
[1742916250834,5.30271492,145.61,145.6,32.1873]
[1742916251037,1.492e-05,145.61,145.6,32.1873]
[1742916251633,278.07861343,145.7,145.61,6.8668]
[1742916252137,6.8633,145.69,145.63,6.8655]
[1742916252336,6.8633,145.69,145.64,25.32]
[1742916252733,0.05279183,145.68,145.65,0.05191947]
[1742916252937,6.91639183,145.68,145.65,0.05191947]
[1742916253134,0.05279183,145.68,145.65,0.05191947]
[1742916254042,6.8644,145.66,145.65,0.05191947]
[1742916258846,6.8642,145.67,145.65,0.05191947]
[1742916259043,6.8642,145.67,145.65,25.33191947]
[1742916259444,6.91639183,145.68,145.65,25.33191947]
[1742916259644,0.05279183,145.68,145.65,25.33191947]
[1742916259844,0.05279183,145.68,145.67,6.864]
[1742916269655,6.8609,145.74,145.71,6.8618]
[1742916269948,6.8611,145.73,145.72,25.2]
[1742916272448,6.8616,145.72,145.71,0.04584277]
[1742916277451,6.8616,145.72,145.71,4.277e-05]
[1742916277656,6.86,145.72,145.65,25.1]
[1742916277854,25.1,145.75,145.65,25.1]
[1742916278055,13.7217,145.74,145.65,25.1]
[1742916278454,25.1,145.75,145.65,25.1]
[1742916278757,6.8644,145.66,145.65,25.1]
[1742916283858,6.8644,145.66,145.64,0.04368064]
[1742916284057,6.8644,145.66,145.64,25.16368064]
[1742916284367,6.91439976,145.67,145.64,32.02868064]
[1742916284757,0.05029976,145.67,145.64,0.04368064]
[1742916284959,0.05029976,145.67,145.65,25.1]
[1742916286158,0.05029976,145.67,145.66,6.8644]
[1742916289964,0.05029976,145.67,145.66,51.28494412]
[1742916292364,0.05029976,145.67,145.66,117.48382486]
[1742916295163,0.05029976,145.67,145.66,88.94350228]
[1742916300369,0.05029976,145.67,145.66,51.3807324]
[1742916301867,10.25444145,145.8,145.66,44.5163324]
[1742916302173,25.0,145.8,145.66,44.5163324]
[1742916302373,25.0,145.8,145.72,6.8615]
[1742916302568,25.0,145.8,145.72,31.8615]
[1742916302969,6.8607,145.74,145.72,31.8615]
[1742916303368,6.8607,145.74,145.72,31.90686974]
[1742916303671,6.8607,145.74,145.72,25.04536974]
[1742916304770,6.8607,145.74,145.72,31.90676974]
[1742916305173,0.04797891,145.77,145.72,25.04536974]
[1742916305373,0.04797891,145.77,145.75,6.86]
[1742916305765,6.90747891,145.77,145.75,6.86]
[1742916306870,6.90747891,145.77,145.74,6.8604]
[1742916307176,6.90747891,145.77,145.72,25.04536974]
[1742916308674,6.90747891,145.77,145.74,6.8604]
[1742916308874,6.8598,145.76,145.74,6.8604]
[1742916309473,0.04797891,145.77,145.74,6.8604]
[1742916309775,0.04797891,145.77,145.75,6.8601]
[1742916309975,0.04797891,145.77,145.76,25.0]
[1742916310366,0.04797891,145.77,145.76,31.8597]
[1742916311078,0.04797891,145.77,145.76,25.0]
[1742916311678,6.90717891,145.77,145.76,25.0]
[1742916314880,6.8597,145.76,145.75,25.04660107]
[1742916315370,0.04797891,145.77,145.75,25.04660107]
[1742916316478,6.8597,145.76,145.75,25.04660107]
[1742916316678,0.04797891,145.77,145.75,25.04660107]
[1742916317576,0.04797891,145.77,145.76,6.8597]
[1742916319086,13.7077,145.89,145.8,6.8577]
[1742916319275,13.7077,145.89,145.81,25.0]
[1742916319477,13.7077,145.89,145.82,25.0]
[1742916319677,6.8562,145.84,145.82,25.0]
[1742916319983,13.7077,145.89,145.82,25.0]
[1742916320187,10.25444145,145.9,145.82,25.0]
[1742916320381,0.04606425,145.87,145.84,0.04883091]
[1742916320782,6.8555,145.85,145.84,0.04883091]
[1742916323788,6.8555,145.85,145.84,3.091e-05]
[1742916342196,6.8553,145.86,145.84,3.091e-05]
[1742916342500,0.04606425,145.87,145.84,3.091e-05]
[1742916342699,6.90096425,145.87,145.84,24.98003091]
[1742916343099,6.8555,145.85,145.84,24.98003091]
[1742916343299,6.8555,145.85,145.84,3.091e-05]
[1742916346592,0.04606425,145.87,145.84,3.091e-05]
[1742916347002,6.8555,145.85,145.84,3.091e-05]
[1742916347305,0.04606425,145.87,145.84,3.091e-05]
[1742916347705,6.8555,145.85,145.84,3.091e-05]
[1742916350195,6.8552,145.86,145.84,3.091e-05]
[1742916350806,6.855,145.86,145.84,3.091e-05]
[1742916351006,0.04606425,145.87,145.84,3.091e-05]
[1742916351507,6.90096425,145.87,145.85,6.8554]
[1742916351700,0.04606425,145.87,145.84,3.091e-05]
[1742916352214,0.04606425,145.87,145.85,6.8551]
[1742916352410,0.04606425,145.87,145.84,3.091e-05]
[1742916352708,0.04606425,145.87,145.85,24.98]
[1742916352908,0.04606425,145.87,145.86,6.855]
[1742916353410,0.04606425,145.87,145.85,24.98]
[1742916353710,6.90096425,145.87,145.85,24.98]
[1742916354210,0.04606425,145.87,145.85,24.98]
[1742916354910,6.90096425,145.87,145.85,24.98]
[1742916355112,0.04606425,145.87,145.85,31.8351]
[1742916355313,0.04606425,145.87,145.85,24.98]
[1742916355712,0.04606425,145.87,145.86,6.855]
[1742916356710,6.90086425,145.87,145.85,24.98]
[1742916356911,0.04606425,145.87,145.85,24.98]
[1742916357306,0.04606425,145.87,145.85,31.8353]
[1742916358206,0.04606425,145.87,145.86,6.855]
[1742916358405,24.93045212,146.0,145.85,24.98]
[1742916358608,35.18489357,146.0,145.85,35.23444145]
[1742916358817,24.98,145.99,145.85,35.23444145]
[1742916359012,6.8518,145.93,145.85,35.23444145]
[1742916359719,6.8518,145.93,145.9,6.8529]
[1742916359918,6.8518,145.93,145.9,24.98]
[1742916360119,6.90354375,145.93,145.9,24.98]
[1742916360420,6.90354375,145.93,145.9,31.8328]
[1742916360623,6.8522,145.92,145.9,24.98]
[1742916360817,0.05174375,145.93,145.9,24.98]
[1742916361218,6.8525,145.92,145.9,24.98]
[1742916361417,0.05174375,145.93,145.91,6.8524]
[1742916361620,0.05174375,145.93,145.9,24.98]
[1742916362623,0.05174375,145.93,145.91,6.8527]
[1742916363515,0.05174375,145.93,145.92,6.8522]
[1742916366820,0.05174375,145.93,145.91,6.90013706]
[1742916367221,0.05174375,145.93,145.91,0.04773706]
[1742916368424,0.05174375,145.93,145.92,6.8522]
[1742916379341,0.05174375,145.93,145.92,31.8122]
[1742916379735,0.05174375,145.93,145.91,6.90013706]
[1742916379935,6.90364375,145.93,145.92,24.96]
[1742916380142,0.05174375,145.93,145.92,24.96]
[1742916380640,6.90344375,145.93,145.92,24.96]
[1742916381433,0.05174375,145.93,145.92,24.96]
[1742916383047,6.90344375,145.93,145.92,24.96]
[1742916383245,0.05174375,145.93,145.92,24.96]
[1742916383747,0.05174375,145.93,145.92,31.8122]
[1742916391543,0.05174375,145.93,145.92,24.96]
[1742916391948,0.05174375,145.93,145.92,31.8122]
[1742916393848,0.05174375,145.93,145.91,6.90023706]
[1742916394553,6.90374375,145.93,145.91,6.90023706]
[1742916394850,0.05174375,145.93,145.91,0.04773706]
[1742916395039,6.8522,145.92,145.91,0.04773706]
[1742916403852,6.86,145.92,145.85,9.50143814]
[1742916404057,10.25444145,145.94,145.85,34.46143814]
[1742916404460,6.8544,145.88,145.85,41.31693814]
[1742916404658,10.25444145,145.94,145.85,31.8155]
[1742916404852,6.8546,145.87,145.85,31.8155]
[1742916405053,0.04478536,145.91,145.86,6.855]
[1742916405258,10.25444145,145.94,145.86,6.855]
[1742916405449,0.04483376,145.9,145.86,6.855]
[1742916405652,0.04483376,145.9,145.89,0.04706098]
[1742916405849,6.8541,145.88,145.85,24.96]
[1742916406357,6.8541,145.88,145.85,25.01095942]
[1742916406661,6.8541,145.88,145.86,6.855]
[1742916406958,6.8541,145.88,145.85,25.01095942]
[1742916407148,6.8546,145.87,145.85,25.01095942]
[1742916407355,0.04483376,145.9,145.85,6.90625942]
[1742916408255,6.8545,145.88,145.85,6.90625942]
[1742916408458,0.04483376,145.9,145.85,0.05095942]
[1742916408660,6.8543,145.88,145.85,0.05095942]
[1742916408960,0.04483376,145.9,145.85,6.90615942]
[1742916409961,0.04483376,145.9,145.85,0.05095942]
[1742916410464,0.04483376,145.9,145.85,6.90615942]
[1742916410763,0.04483376,145.9,145.85,0.05095942]
[1742916411166,6.8549,145.87,145.85,0.05095942]
[1742916411768,6.8543,145.88,145.85,0.05095942]
[1742916412067,0.04483376,145.9,145.85,0.05095942]
[1742916412367,6.8548,145.87,145.85,0.05095942]
[1742916412569,0.04483376,145.9,145.85,0.05095942]
[1742916412969,6.855,145.86,145.85,0.05095942]
[1742916414871,0.05284457,145.87,145.85,0.05095942]
[1742916415265,0.05284457,145.87,145.85,6.90625942]
[1742916415770,0.05284457,145.87,145.86,6.855]
[1742916419772,23.95404145,145.98,145.85,0.05095942]
[1742916419963,23.95404145,145.98,145.84,24.96]
[1742916419964,11.23305212,145.99,145.84,35.21444145]
[1742916420168,11.23305212,145.99,145.86,10.25444145]
[1742916420368,6.8505,145.96,145.93,6.8515]
[1742916420865,6.8517,145.93,145.89,24.96]
[1742916421271,0.0508185,145.92,145.9,0.04883345]
[1742916422076,0.0508185,145.92,145.91,6.8527]
[1742916422570,24.96,146.02,145.91,6.86]
[1742916422777,23.94604145,146.06,145.9,10.25444145]
[1742916422972,23.94604145,146.06,145.96,6.8499]
[1742916422973,6.8487,146.0,145.96,6.8499]
[1742916423276,6.8487,146.0,145.96,24.96]
[1742916423483,6.8492,145.99,145.96,24.96]
[1742916423677,6.89572345,145.99,145.97,0.05021416]
[1742916424378,6.8494,145.98,145.97,0.05021416]
[1742916424577,0.04652345,145.99,145.97,0.05021416]
[1742916425076,6.89572345,145.99,145.97,0.05021416]
[1742916425276,0.04652345,145.99,145.97,0.05021416]
[1742916425875,0.04652345,145.99,145.97,1.416e-05]
[1742916426070,6.8494,145.98,145.97,1.416e-05]
[1742916431687,6.8529,145.91,145.9,24.96]
[1742916432288,24.96,145.95,145.83,226.1]
[1742916432488,24.96,145.94,145.85,6.8554]
[1742916432983,24.96,145.94,145.84,24.96]
[1742916432984,0.05071121,145.91,145.88,0.04835677]
[1742916433590,6.8537,145.89,145.88,0.04835677]
[1742916435387,0.05071121,145.91,145.88,0.04835677]
[1742916435592,0.05071121,145.91,145.89,24.96]
[1742916435990,0.05071121,145.91,145.9,6.8531]
[1742916437894,0.05071121,145.91,145.89,31.8134]
[1742916438089,0.05071121,145.91,145.89,24.96]
[1742916439998,6.90361121,145.91,145.89,24.96]
[1742916440199,0.05071121,145.91,145.89,24.96]
[1742916440397,0.05071121,145.91,145.89,31.8135]
[1742916441896,0.05071121,145.91,145.89,24.96]
[1742916441897,6.90341121,145.91,145.89,24.96]
[1742916442096,0.05071121,145.91,145.89,24.96]
[1742916442596,0.05071121,145.91,145.89,31.8132]
[1742916443200,0.05071121,145.91,145.89,24.96]
[1742916443396,0.05071121,145.91,145.88,0.04835677]
[1742916443597,6.90361121,145.91,145.88,31.86215677]
[1742916444196,0.05071121,145.91,145.9,6.8531]
[1742916446801,0.05071121,145.91,145.88,31.86235677]
[1742916447502,0.05071121,145.91,145.88,25.00835677]
[1742916448892,6.90341121,145.91,145.88,25.00835677]
[1742916449303,6.8532,145.9,145.88,25.00835677]
[1742916449495,0.05071121,145.91,145.88,25.00835677]
[1742916450200,6.90361121,145.91,145.88,25.00835677]
[1742916450399,0.05071121,145.91,145.88,25.00835677]
[1742916450599,6.8536,145.89,145.88,25.00835677]
[1742916451499,6.8534,145.9,145.88,25.00835677]
[1742916451798,0.05071121,145.91,145.88,25.00835677]
[1742916452001,6.8536,145.89,145.88,25.00835677]
[1742916452199,6.8536,145.89,145.88,0.04835677]
[1742916452902,0.05071121,145.91,145.88,0.04835677]
[1742916453398,6.8534,145.9,145.88,0.04835677]
[1742916454105,0.05071121,145.91,145.88,0.04835677]
[1742916455502,6.8536,145.89,145.88,0.04835677]
[1742916466110,6.8536,145.89,145.88,5.677e-05]
[1742916471011,6.8569,145.83,145.77,591.18]
[1742916471211,6.8569,145.83,145.8,6.8575]
[1742916471916,6.8569,145.83,145.81,6.8573]
[1742916472114,6.8569,145.82,145.78,24.96]
[1742916472414,6.8569,145.82,145.81,0.04406063]
[1742916473205,6.90504231,145.83,145.81,0.04406063]
[1742916473409,0.04844231,145.83,145.81,0.04406063]
[1742916473604,0.04844231,145.83,145.82,31.8169]
[1742916474718,0.04844231,145.83,145.81,0.04406063]
[1742916475114,6.8569,145.82,145.81,0.04406063]
[1742916476213,6.90504231,145.83,145.81,0.04406063]
[1742916476716,0.04844231,145.83,145.81,0.04406063]
[1742916476911,0.04844231,145.83,145.82,6.8569]
[1742916481114,0.04844231,145.83,145.81,0.04406063]
[1742916481818,0.04844231,145.83,145.81,6.90126063]
[1742916482419,6.90514231,145.83,145.81,6.90126063]
[1742916482811,6.8569,145.82,145.81,0.04406063]
[1742916483215,6.8569,145.82,145.81,6.063e-05]
[1742916485016,6.90514231,145.83,145.81,6.063e-05]
[1742916485218,0.04844231,145.83,145.81,6.063e-05]
[1742916486223,6.8569,145.82,145.81,6.063e-05]
[1742916487123,0.04844231,145.83,145.81,6.063e-05]
[1742916488217,6.90494231,145.83,145.81,6.063e-05]
[1742916489825,6.90494231,145.83,145.81,6.85746063]
[1742916490028,6.90494231,145.83,145.81,6.063e-05]
[1742916490322,6.90494231,145.83,145.81,6.85706063]
[1742916490521,6.90494231,145.83,145.81,6.063e-05]
[1742916490922,6.8569,145.82,145.81,6.063e-05]
[1742916497137,6.8588,145.78,145.73,14.83268394]
[1742916497327,25.00844231,145.83,145.74,24.96]
[1742916497630,24.96,145.83,145.75,24.96]
[1742916497836,35.19201383,145.83,145.71,226.24]
[1742916498036,35.19201383,145.83,145.74,24.96]
[1742916498434,0.04665729,145.8,145.77,0.05103988]
[1742916498936,6.8588,145.78,145.77,0.05103988]
[1742916504536,0.04665729,145.8,145.77,0.05103988]
[1742916505242,0.04665729,145.8,145.77,6.91003988]
[1742916505842,0.04665729,145.8,145.77,0.05103988]
[1742916506847,6.8585,145.79,145.77,0.05103988]
[1742916507044,0.04665729,145.8,145.77,0.05103988]
[1742916507543,6.8587,145.79,145.77,0.05103988]
[1742916508447,6.90495729,145.8,145.77,0.05103988]
[1742916508851,6.90495729,145.8,145.77,6.91003988]
[1742916509051,0.04665729,145.8,145.77,0.05103988]
[1742916509847,0.04665729,145.8,145.77,10.28305371]
[1742916510046,28.07814658,145.9,145.77,17.14305371]
[1742916510251,6.8549,145.87,145.77,10.23201383]
[1742916510448,28.07814658,145.9,145.79,10.23201383]
[1742916510643,28.07814658,145.9,145.81,10.23201383]
[1742916510851,34.93154658,145.9,145.8,251.28]
[1742916511150,28.07814658,145.9,145.87,6.8543]
[1742916511453,34.93154658,145.9,145.87,31.8143]
[1742916511641,34.98070798,145.9,145.87,31.86672164]
[1742916511947,34.98070798,145.9,145.87,25.01242164]
[1742916513149,0.0491614,145.9,145.87,25.01242164]
[1742916515053,0.0491614,145.9,145.87,0.05242164]
[1742916515249,0.0491614,145.9,145.88,24.96]
[1742916517654,6.9023614,145.9,145.88,24.96]
[1742916517959,6.9023614,145.9,145.87,6.90682164]
[1742916518251,6.9023614,145.9,145.88,24.96]
[1742916518650,6.8536,145.89,145.88,24.96]
[1742916519558,6.9024614,145.9,145.88,24.96]
[1742916520153,6.9024614,145.9,145.88,31.814]
[1742916520453,6.9024614,145.9,145.88,24.96]
[1742916520755,0.0491614,145.9,145.88,31.8136]
[1742916521955,6.9025614,145.9,145.88,24.96]
[1742916522152,0.0491614,145.9,145.88,24.96]
[1742916522360,0.0491614,145.9,145.87,0.05242164]
[1742916522559,6.8541,145.88,145.87,0.05242164]
[1742916524663,6.8541,145.88,145.87,2.164e-05]
[1742916529269,24.94,145.89,145.77,226.2]
[1742916529468,24.94,145.89,145.79,6.8583]
[1742916529663,6.8574,145.81,145.79,6.8583]
[1742916529863,24.94,145.89,145.78,24.94]
[1742916530071,24.94,145.89,145.77,226.2]
[1742916530368,0.04796261,145.85,145.82,2.258e-05]
[1742916530569,24.98796261,145.85,145.82,2.258e-05]
[1742916530770,6.8564,145.83,145.82,2.258e-05]
[1742916530970,0.04796261,145.85,145.82,2.258e-05]
[1742916531270,6.8564,145.84,145.82,2.258e-05]
[1742916531570,0.04796261,145.85,145.82,2.258e-05]
[1742916532573,6.8564,145.83,145.82,2.258e-05]
[1742916542280,6.8561,145.84,145.82,2.258e-05]
[1742916543184,6.8561,145.84,145.82,6.85652258]
[1742916543575,6.8564,145.83,145.82,2.258e-05]